bitfinex-derivatives/quotes_BNBF0:USTF0_20260114
["timestamp","ask_amount","ask_price","bid_price","bid_amount"]
[1768369282193,0.75868289,942.5,941.53,0.18463204]
[1768369282390,0.75868289,942.49,941.53,0.18463204]
[1768369282591,0.75868289,942.48,941.53,0.18463204]
[1768369282791,0.75868289,942.47,941.53,0.18463204]
[1768369283092,0.75868289,942.46,941.53,0.18463204]
[1768369283292,0.75868289,942.45,941.53,0.18463204]
[1768369283491,0.75868289,942.44,941.53,0.18463204]
[1768369283693,0.75868289,942.43,941.53,0.18463204]
[1768369283893,0.75868289,942.42,941.53,0.18463204]
[1768369284095,0.75868289,942.41,941.53,0.18463204]
[1768369284296,0.75868289,942.4,941.53,0.18463204]
[1768369284594,0.75868289,942.39,941.53,0.18463204]
[1768369284792,0.75868289,942.38,941.53,0.18463204]
[1768369284991,0.75868289,942.37,941.53,0.18463204]
[1768369285193,0.75868289,942.36,941.53,0.18463204]
[1768369285393,0.75868289,942.35,941.53,0.18463204]
[1768369285592,0.75868289,942.34,941.53,0.18463204]
[1768369285791,0.75868289,942.33,941.53,0.18463204]
[1768369286094,0.75868289,942.32,941.53,0.18463204]
[1768369286289,0.75868289,942.31,941.53,0.18463204]
[1768369286493,0.75868289,942.3,941.53,0.18463204]
[1768369286690,0.75868289,942.29,941.53,0.18463204]
[1768369286896,0.75868289,942.28,941.53,0.18463204]
[1768369287092,0.75868289,942.27,941.53,0.18463204]
[1768369287290,0.75868289,942.26,941.53,0.18463204]
[1768369287495,0.75868289,942.25,941.53,0.18463204]
[1768369287692,0.75868289,942.24,941.53,0.18463204]
[1768369287892,0.75868289,942.23,941.53,0.18463204]
[1768369288092,0.75868289,942.22,941.53,0.18463204]
[1768369288292,0.75868289,942.21,941.53,0.18463204]
[1768369288493,0.75868289,942.2,941.53,0.18463204]
[1768369288694,0.75868289,942.19,941.53,0.18463204]
[1768369288896,0.75868289,942.18,941.53,0.18463204]
[1768369289095,0.75868289,942.17,941.53,0.18463204]
[1768369289297,0.75868289,942.16,941.53,0.18463204]
[1768369289593,0.75868289,942.15,941.53,0.18463204]
[1768369289893,0.75868289,942.14,941.53,0.18463204]
[1768369290098,0.75868289,942.13,941.53,0.18463204]
[1768369290294,0.75868289,942.12,941.53,0.18463204]
[1768369290500,0.75868289,942.11,941.53,0.18463204]
[1768369290700,0.75868289,942.1,941.53,0.18463204]
[1768369290895,0.75868289,942.09,941.53,0.18463204]
[1768369291097,0.75868289,942.08,941.53,0.18463204]
[1768369291296,0.75868289,942.07,941.53,0.18463204]
[1768369291495,0.75868289,942.06,941.53,0.18463204]
[1768369291697,0.75868289,942.05,941.53,0.18463204]
[1768369291901,0.75868289,942.04,941.53,0.18463204]
[1768369292198,0.00962275,943.0,941.53,0.18463204]
[1768369292400,0.75722016,942.99,941.53,0.18463204]
[1768369292698,0.75722016,942.98,941.53,0.18463204]
[1768369292900,0.75722016,942.97,941.53,0.18463204]
[1768369293102,0.75721146,942.96,941.53,0.18463204]
[1768369293298,0.75721146,942.95,941.53,0.18463204]
[1768369293497,0.75721146,942.94,941.53,0.18463204]
[1768369293698,0.75721146,942.93,941.53,0.18463204]
[1768369293994,0.75721146,942.92,941.53,0.18463204]
[1768369294195,0.75721146,942.91,941.53,0.18463204]
[1768369294404,0.75721146,942.9,941.53,0.18463204]
[1768369294602,0.75721146,942.89,941.53,0.18463204]
[1768369294798,0.75721146,942.88,941.53,0.18463204]
[1768369294999,0.75721146,942.87,941.53,0.18463204]
[1768369295198,0.75721146,942.86,941.53,0.18463204]
[1768369295400,0.75721146,942.85,941.53,0.18463204]
[1768369295598,0.75721146,942.84,941.53,0.18463204]
[1768369295798,0.75721146,942.83,941.53,0.18463204]
[1768369296099,0.75721146,942.82,941.53,0.18463204]
[1768369296303,0.75721146,942.81,941.53,0.18463204]
[1768369296502,0.75717209,942.8,941.53,0.18463204]
[1768369296703,0.75717209,942.79,941.53,0.18463204]
[1768369296904,0.75717209,942.78,941.53,0.18463204]
[1768369297200,0.75717209,942.77,941.53,0.18463204]
[1768369297404,0.75717209,942.76,941.53,0.18463204]
[1768369297601,0.75717209,942.75,941.53,0.18463204]
[1768369297905,0.75717209,942.74,941.53,0.18463204]
[1768369298206,0.75717209,942.73,941.53,0.18463204]
[1768369298406,0.75717209,942.72,941.53,0.18463204]
[1768369298606,0.75717209,942.71,941.53,0.18463204]
[1768369298806,0.75717209,942.7,941.53,0.18463204]
[1768369299106,0.75717209,942.69,941.53,0.18463204]
[1768369299303,0.75717209,942.68,941.53,0.18463204]
[1768369299605,0.75717209,942.67,941.53,0.18463204]
[1768369299804,0.75717209,942.66,941.53,0.18463204]
[1768369300004,0.75717209,942.65,941.53,0.18463204]
[1768369300205,0.75717209,942.64,941.53,0.18463204]
[1768369300404,0.75717209,942.63,941.53,0.18463204]
[1768369300604,0.75717209,942.62,941.53,0.18463204]
[1768369300904,0.75717209,942.61,941.53,0.18463204]
[1768369301104,0.75717209,942.6,941.53,0.18463204]
[1768369301305,0.75717209,942.59,941.53,0.18463204]
[1768369301506,0.75717209,942.58,941.53,0.18463204]
[1768369301704,0.75717209,942.57,941.53,0.18463204]
[1768369301905,0.75717209,942.56,941.53,0.18463204]
[1768369302103,0.75717209,942.55,941.53,0.18463204]
[1768369302309,0.75717209,942.54,941.53,0.18463204]
[1768369302606,0.18463155,943.1,941.53,0.18463204]
[1768369302607,0.75717209,942.53,941.53,0.18463204]
[1768369302806,0.75717209,942.52,941.53,0.18463204]
[1768369303005,0.75717209,942.51,941.53,0.18463204]
[1768369303207,0.75717209,942.5,941.53,0.18463204]
[1768369303407,0.75717209,942.49,941.53,0.18463204]
[1768369303604,0.75717209,942.48,941.53,0.18463204]
[1768369303808,0.75717209,942.47,941.53,0.18463204]
[1768369304006,0.75812137,942.46,941.53,0.18463204]
[1768369304206,0.75812137,942.45,941.53,0.18463204]
[1768369304410,0.75812137,942.44,941.53,0.18463204]
[1768369304606,0.75812137,942.43,941.53,0.18463204]
[1768369304809,0.75812137,942.42,941.53,0.18463204]
[1768369305008,0.75812137,942.41,941.53,0.18463204]
[1768369305209,0.75812137,942.4,941.53,0.18463204]
[1768369305410,0.75812137,942.39,941.53,0.18463204]
[1768369305710,0.75812137,942.38,941.53,0.18463204]
[1768369306007,0.75812137,942.37,941.53,0.18463204]
[1768369306208,0.75812137,942.36,941.53,0.18463204]
[1768369306411,0.75812137,942.35,941.53,0.18463204]
[1768369306611,0.75812137,942.34,941.53,0.18463204]
[1768369306808,0.75812137,942.33,941.53,0.18463204]
[1768369307111,0.75812137,942.32,941.53,0.18463204]
[1768369307309,0.75812137,942.31,941.53,0.18463204]
[1768369307512,0.75812137,942.3,941.53,0.18463204]
[1768369307712,0.75812137,942.29,941.53,0.18463204]
[1768369307914,0.75812137,942.28,941.53,0.18463204]
[1768369308214,0.75812137,942.27,941.53,0.18463204]
[1768369308412,0.75812137,942.26,941.53,0.18463204]
[1768369308612,0.75812137,942.25,941.53,0.18463204]
[1768369308814,0.75812137,942.24,941.53,0.18463204]
[1768369309110,0.75812137,942.23,941.53,0.18463204]
[1768369309311,0.75812137,942.22,941.53,0.18463204]
[1768369309510,0.75812137,942.21,941.53,0.18463204]
[1768369309712,0.75812137,942.2,941.53,0.18463204]
[1768369309916,0.75812137,942.19,941.53,0.18463204]
[1768369310114,0.75812137,942.18,941.53,0.18463204]
[1768369310317,0.75812137,942.17,941.53,0.18463204]
[1768369310516,0.75812137,942.16,941.53,0.18463204]
[1768369310716,0.75812137,942.15,941.53,0.18463204]
[1768369310913,0.75812137,942.14,941.53,0.18463204]
[1768369311214,0.75812137,942.13,941.53,0.18463204]
[1768369311417,0.75812137,942.12,941.53,0.18463204]
[1768369311618,0.01217411,943.09,941.53,0.18463204]
[1768369311818,0.7589349,943.08,941.53,0.18463204]
[1768369312018,0.7589349,943.07,941.53,0.18463204]
[1768369312219,0.7589349,943.06,941.53,0.18463204]
[1768369312414,0.7589349,943.05,941.53,0.18463204]
[1768369312615,0.7589349,943.04,941.53,0.18463204]
[1768369312818,0.7589349,943.03,941.53,0.18463204]
[1768369313019,0.7589349,943.02,941.53,0.18463204]
[1768369313224,0.7589349,943.01,941.53,0.18463204]
[1768369313421,0.7589349,943.0,941.53,0.18463204]
[1768369313622,0.7589349,942.99,941.53,0.18463204]
[1768369313822,0.7589349,942.98,941.53,0.18463204]
[1768369314122,0.7589349,942.97,941.53,0.18463204]
[1768369314319,0.7589349,942.96,941.53,0.18463204]
[1768369314521,0.7589349,942.95,941.53,0.18463204]
[1768369314722,0.7589349,942.94,941.53,0.18463204]
[1768369314921,0.7589349,942.93,941.53,0.18463204]
[1768369315122,0.7589349,942.92,941.53,0.18463204]
[1768369315319,0.7589349,942.91,941.53,0.18463204]
[1768369315524,0.7589349,942.9,941.53,0.18463204]
[1768369315719,0.7589349,942.89,941.53,0.18463204]
[1768369315920,0.7589349,942.88,941.53,0.18463204]
[1768369316120,0.7589349,942.87,941.53,0.18463204]
[1768369316422,0.7589349,942.86,941.53,0.18463204]
[1768369316624,0.7589349,942.85,941.53,0.18463204]
[1768369316821,0.7589349,942.84,941.53,0.18463204]
[1768369317020,0.7589349,942.83,941.53,0.18463204]
[1768369317222,0.18466241,943.2,941.53,0.18463204]
[1768369317223,0.7589349,942.82,941.53,0.18463204]
[1768369317425,0.7589349,942.81,941.53,0.18463204]
[1768369317621,0.7589349,942.8,941.53,0.18463204]
[1768369317825,0.7589349,942.79,941.53,0.18463204]
[1768369318022,0.7589349,942.78,941.53,0.18463204]
[1768369318223,0.7589349,942.77,941.53,0.18463204]
[1768369318522,0.7589349,942.76,941.53,0.18463204]
[1768369318721,0.7589349,942.75,941.53,0.18463204]
[1768369318924,0.7589349,942.74,941.53,0.18463204]
[1768369319125,0.7589349,942.73,941.53,0.18463204]
[1768369319326,0.7589349,942.72,941.53,0.18463204]
[1768369319624,0.7589349,942.71,941.53,0.18463204]
[1768369319923,0.7589349,942.7,941.53,0.18463204]
[1768369320124,0.7589349,942.69,941.53,0.18463204]
[1768369320322,0.7589349,942.68,941.53,0.18463204]
[1768369320524,0.7589349,942.67,941.53,0.18463204]
[1768369320727,0.7589349,942.66,941.53,0.18463204]
[1768369320928,0.7589349,942.65,941.53,0.18463204]
[1768369321128,0.18466241,943.2,941.53,0.18463204]
[1768369321328,0.7591729,943.19,941.53,0.18463204]
[1768369321524,0.7591729,943.18,941.53,0.18463204]
[1768369321729,0.7591729,943.17,941.53,0.18463204]
[1768369321929,0.7591729,943.16,941.53,0.18463204]
[1768369322229,0.7591729,943.15,941.53,0.18463204]
[1768369322425,0.7591729,943.14,941.53,0.18463204]
[1768369322625,0.18466241,943.2,941.53,0.18463204]
[1768369322626,0.7591729,943.13,941.53,0.18463204]
[1768369322831,0.7591729,943.12,941.53,0.18463204]
[1768369323029,0.7591729,943.11,941.53,0.18463204]
[1768369323230,0.7591729,943.1,941.53,0.18463204]
[1768369323529,0.7591729,943.09,941.53,0.18463204]
[1768369323726,0.7591729,943.08,941.53,0.18463204]
[1768369323930,0.7591729,943.07,941.53,0.18463204]
[1768369324228,0.7591729,943.06,941.53,0.18463204]
[1768369324528,0.7591729,943.05,941.53,0.18463204]
[1768369324725,0.7591729,943.04,941.53,0.18463204]
[1768369324929,0.7591729,943.03,941.53,0.18463204]
[1768369325129,0.7591729,943.02,941.53,0.18463204]
[1768369325426,0.7591729,943.01,941.53,0.18463204]
[1768369325630,0.7591729,943.0,941.53,0.18463204]
[1768369325926,0.7591729,942.99,941.53,0.18463204]
[1768369326126,0.7591729,942.98,941.53,0.18463204]
[1768369326330,0.7591729,942.97,941.53,0.18463204]
[1768369326528,0.7591729,942.96,941.53,0.18463204]
[1768369326730,0.7591729,942.95,941.53,0.18463204]
[1768369326926,0.7591729,942.94,941.53,0.18463204]
[1768369327125,0.7591729,942.93,941.53,0.18463204]
[1768369327326,0.7591729,942.92,941.53,0.18463204]
[1768369327527,0.7591729,942.91,941.53,0.18463204]
[1768369327827,0.7591729,942.9,941.53,0.18463204]
[1768369328030,0.7591729,942.89,941.53,0.18463204]
[1768369328227,0.7591729,942.88,941.53,0.18463204]
[1768369328529,0.7591729,942.87,941.53,0.18463204]
[1768369328725,0.7591729,942.86,941.53,0.18463204]
[1768369328930,0.7591729,942.85,941.53,0.18463204]
[1768369329124,0.7591729,942.84,941.53,0.18463204]
[1768369329329,0.7591729,942.83,941.53,0.18463204]
[1768369329629,0.7591729,942.82,941.53,0.18463204]
[1768369329828,0.7591729,942.81,941.53,0.18463204]
[1768369330129,0.7591729,942.8,941.53,0.18463204]
[1768369330325,0.7591729,942.79,941.53,0.18463204]
[1768369330525,0.7591729,942.78,941.53,0.18463204]
[1768369330829,0.7591729,942.77,941.53,0.18463204]
[1768369331024,0.7591729,942.76,941.53,0.18463204]
[1768369331229,0.7591729,942.75,941.53,0.18463204]
[1768369331426,0.7591729,942.74,941.53,0.18463204]
[1768369331627,0.7591729,942.73,941.53,0.18463204]
[1768369331826,0.7591729,942.72,941.53,0.18463204]
[1768369332029,0.7591729,942.71,941.53,0.18463204]
[1768369332226,0.18466241,943.2,941.53,0.18463204]
[1768369332227,0.7591729,942.7,941.53,0.18463204]
[1768369332427,0.7591729,942.69,941.53,0.18463204]
[1768369332731,0.7591729,942.68,941.53,0.18463204]
[1768369333027,0.7591729,942.67,941.53,0.18463204]
[1768369333227,0.7591729,942.66,941.53,0.18463204]
[1768369333432,0.7591729,942.65,941.53,0.18463204]
[1768369333629,0.7591729,942.64,941.53,0.18463204]
[1768369333932,0.7591729,942.63,941.53,0.18463204]
[1768369334128,0.7591729,942.62,941.53,0.18463204]
[1768369334333,0.7591729,942.61,941.53,0.18463204]
[1768369334534,0.7591729,942.6,941.53,0.18463204]
[1768369334729,0.7591729,942.59,941.53,0.18463204]
[1768369334931,0.7591729,942.58,941.53,0.18463204]
[1768369335134,0.7591729,942.57,941.53,0.18463204]
[1768369335430,0.7591729,942.56,941.53,0.18463204]
[1768369335631,0.7591729,942.55,941.53,0.18463204]
[1768369335835,0.7591729,942.54,941.53,0.18463204]
[1768369336035,0.7591729,942.53,941.53,0.18463204]
[1768369336230,0.7591729,942.52,941.53,0.18463204]
[1768369336431,0.7591729,942.51,941.53,0.18463204]
[1768369336631,0.7591729,942.5,941.53,0.18463204]
[1768369336931,0.7591729,942.49,941.53,0.18463204]
[1768369337131,0.7591729,942.48,941.53,0.18463204]
[1768369337432,0.7591729,942.47,941.53,0.18463204]
[1768369337632,0.7591729,942.46,941.53,0.18463204]
[1768369337834,0.7591729,942.45,941.53,0.18463204]
[1768369338032,0.7591729,942.44,941.53,0.18463204]
[1768369338333,0.7591729,942.43,941.53,0.18463204]
[1768369338535,0.7591729,942.42,941.53,0.18463204]
[1768369338836,0.7591729,942.41,941.53,0.18463204]
[1768369339035,0.7591729,942.4,941.53,0.18463204]
[1768369339235,0.7591729,942.39,941.53,0.18463204]
[1768369339635,0.7591729,942.38,941.53,0.18463204]
[1768369339832,0.7591729,942.37,941.53,0.18463204]
[1768369340135,0.7591729,942.36,941.53,0.18463204]
[1768369340336,0.7591729,942.35,941.53,0.18463204]
[1768369340531,0.7591729,942.34,941.53,0.18463204]
[1768369340833,0.7591729,942.33,941.53,0.18463204]
[1768369341035,0.7591729,942.32,941.53,0.18463204]
[1768369341336,0.7591729,942.31,941.53,0.18463204]
[1768369341532,0.7591729,942.3,941.53,0.18463204]
[1768369341733,0.7591729,942.29,941.53,0.18463204]
[1768369341933,0.7591729,942.28,941.53,0.18463204]
[1768369342134,0.7591729,942.27,941.53,0.18463204]
[1768369342437,0.7591729,942.26,941.53,0.18463204]
[1768369342634,0.7591729,942.25,941.53,0.18463204]
[1768369342835,0.7591729,942.24,941.53,0.18463204]
[1768369343140,0.7591729,942.23,941.53,0.18463204]
[1768369343435,0.7591729,942.22,941.53,0.18463204]
[1768369343639,0.7591729,942.21,941.53,0.18463204]
[1768369343834,0.7591729,942.2,941.53,0.18463204]
[1768369344035,0.7591729,942.19,941.53,0.18463204]
[1768369344235,0.7591729,942.18,941.53,0.18463204]
[1768369344440,0.7591729,942.17,941.53,0.18463204]
[1768369344735,0.7591729,942.16,941.53,0.18463204]
[1768369344939,0.01190574,943.13,941.53,0.18463204]
[1768369345135,0.75940206,943.12,941.53,0.18463204]
[1768369345335,0.75940206,943.11,941.53,0.18463204]
[1768369345541,0.75940206,943.1,941.53,0.18463204]
[1768369345740,0.75940206,943.09,941.53,0.18463204]
[1768369345937,0.75940206,943.08,941.53,0.18463204]
[1768369346142,0.75940206,943.07,941.53,0.18463204]
[1768369346342,0.75940206,943.06,941.53,0.18463204]
[1768369346538,0.75940206,943.05,941.53,0.18463204]
[1768369346739,0.75940206,943.04,941.53,0.18463204]
[1768369346939,0.75940206,943.03,941.53,0.18463204]
[1768369347139,0.75940206,943.02,941.53,0.18463204]
[1768369347338,0.75940206,943.01,941.53,0.18463204]
[1768369347637,0.75940206,943.0,941.53,0.18463204]
[1768369347842,0.75940206,942.99,941.53,0.18463204]
[1768369348039,0.75940206,942.98,941.53,0.18463204]
[1768369348240,0.75940206,942.97,941.53,0.18463204]
[1768369348542,0.75940206,942.96,941.53,0.18463204]
[1768369348739,0.75940206,942.95,941.53,0.18463204]
[1768369348940,0.75940206,942.94,941.53,0.18463204]
[1768369349143,0.75940206,942.93,941.53,0.18463204]
[1768369349341,0.75940206,942.92,941.53,0.18463204]
[1768369349550,0.75940206,942.91,941.53,0.18463204]
[1768369349744,0.75940206,942.9,941.53,0.18463204]
[1768369349940,0.75940206,942.89,941.53,0.18463204]
[1768369350244,0.75940206,942.88,941.53,0.18463204]
[1768369350441,0.75940206,942.87,941.53,0.18463204]
[1768369350740,0.75950323,942.86,941.53,0.18463204]
[1768369350942,0.75950323,942.85,941.53,0.18463204]
[1768369351145,0.75950323,942.84,941.53,0.18463204]
[1768369351346,0.75950323,942.83,941.53,0.18463204]
[1768369351541,0.75950323,942.82,941.53,0.18463204]
[1768369351744,0.75950323,942.81,941.53,0.18463204]
[1768369351945,0.75950323,942.8,941.53,0.18463204]
[1768369352243,0.75950323,942.79,941.53,0.18463204]
[1768369352443,0.75950323,942.78,941.53,0.18463204]
[1768369352644,0.75950323,942.77,941.53,0.18463204]
[1768369352943,0.75950323,942.76,941.53,0.18463204]
[1768369353144,0.75950323,942.75,941.53,0.18463204]
[1768369353343,0.75950323,942.74,941.53,0.18463204]
[1768369353544,0.75950323,942.73,941.53,0.18463204]
[1768369353747,0.75950323,942.72,941.53,0.18463204]
[1768369353947,0.75950323,942.71,941.53,0.18463204]
[1768369354247,0.75950323,942.7,941.53,0.18463204]
[1768369354447,0.75950323,942.69,941.53,0.18463204]
[1768369354644,0.75950323,942.68,941.53,0.18463204]
[1768369354848,0.75950323,942.67,941.53,0.18463204]
[1768369355046,0.75950323,942.66,941.53,0.18463204]
[1768369355244,0.75950323,942.65,941.53,0.18463204]
[1768369355449,0.75950323,942.64,941.53,0.18463204]
[1768369355645,0.75950323,942.63,941.53,0.18463204]
[1768369355845,0.75950323,942.62,941.53,0.18463204]
[1768369356049,0.75950323,942.61,941.53,0.18463204]
[1768369356250,0.75950323,942.6,941.53,0.18463204]
[1768369356450,0.75950323,942.59,941.53,0.18463204]
[1768369356648,0.75950323,942.58,941.53,0.18463204]
[1768369356851,0.75950323,942.57,941.53,0.18463204]
[1768369357147,0.75950323,942.56,941.53,0.18463204]
[1768369357347,0.75950323,942.55,941.53,0.18463204]
[1768369357551,0.75950323,942.54,941.53,0.18463204]
[1768369357752,0.75950323,942.53,941.53,0.18463204]
[1768369357948,0.75950323,942.52,941.53,0.18463204]
[1768369358150,0.75950323,942.51,941.53,0.18463204]
[1768369358350,0.75950323,942.5,941.53,0.18463204]
[1768369358550,0.75950323,942.49,941.53,0.18463204]
[1768369358753,0.75950323,942.48,941.53,0.18463204]
[1768369358949,0.75950323,942.47,941.53,0.18463204]
[1768369359150,0.75950323,942.46,941.53,0.18463204]
[1768369359353,0.75950323,942.45,941.53,0.18463204]
[1768369359551,0.75950323,942.44,941.53,0.18463204]
[1768369359750,0.75950323,942.43,941.53,0.18463204]
[1768369359955,0.75950323,942.42,941.53,0.18463204]
[1768369360255,0.75950323,942.41,941.53,0.18463204]
[1768369360552,0.75950323,942.4,941.53,0.18463204]
[1768369360755,0.75950323,942.39,941.53,0.18463204]
[1768369361051,0.75950323,942.38,941.53,0.18463204]
[1768369361352,0.75950323,942.37,941.53,0.18463204]
[1768369361554,0.75950323,942.36,941.53,0.18463204]
[1768369361750,0.75950323,942.35,941.53,0.18463204]
[1768369361949,0.75950323,942.34,941.53,0.18463204]
[1768369362155,0.75950323,942.33,941.53,0.18463204]
[1768369362454,0.75950323,942.32,941.53,0.18463204]
[1768369362652,0.75950323,942.31,941.53,0.18463204]
[1768369362852,0.75950323,942.3,941.53,0.18463204]
[1768369363053,0.75950323,942.29,941.53,0.18463204]
[1768369363353,0.75950323,942.28,941.53,0.18463204]
[1768369363557,0.75950323,942.27,941.53,0.18463204]
[1768369363854,0.75950323,942.26,941.53,0.18463204]
[1768369364057,0.75950323,942.25,941.53,0.18463204]
[1768369364254,0.75950323,942.24,941.53,0.18463204]
[1768369364453,0.75950323,942.23,941.53,0.18463204]
[1768369364654,0.75950323,942.22,941.53,0.18463204]
[1768369364951,0.75950323,942.21,941.53,0.18463204]
[1768369365158,0.75950323,942.2,941.53,0.18463204]
[1768369365358,0.75843021,942.19,941.53,0.18463204]
[1768369365557,0.75843021,942.18,941.53,0.18463204]
[1768369365755,0.75843021,942.17,941.53,0.18463204]
[1768369365954,0.75843021,942.16,941.53,0.18463204]
[1768369366156,0.75843021,942.15,941.53,0.18463204]
[1768369366355,0.75843021,942.14,941.53,0.18463204]
[1768369366659,0.75843021,942.13,941.53,0.18463204]
[1768369366859,0.75843021,942.12,941.53,0.18463204]
[1768369367059,0.75843021,942.11,941.53,0.18463204]
[1768369367256,0.75843021,942.1,941.53,0.18463204]
[1768369367456,0.75843021,942.09,941.53,0.18463204]
[1768369367657,0.75843021,942.08,941.53,0.18463204]
[1768369367960,0.75843021,942.07,941.53,0.18463204]
[1768369368155,0.75843021,942.06,941.53,0.18463204]
[1768369368561,0.75843021,942.05,941.53,0.18463204]
[1768369368760,0.75843021,942.04,941.53,0.18463204]
[1768369369056,0.75843021,942.03,941.53,0.18463204]
[1768369369263,0.75843021,942.02,941.53,0.18463204]
[1768369369462,0.75843021,942.01,941.53,0.18463204]
[1768369369662,0.75843021,942.0,941.53,0.18463204]
[1768369369961,0.18466241,943.2,941.53,0.18463204]
[1768369370162,0.75835698,943.19,941.53,0.18463204]
[1768369370458,0.00934903,942.94,941.53,0.18463204]
[1768369370662,0.75835698,942.93,941.53,0.18463204]
[1768369370862,0.75835698,942.92,941.53,0.18463204]
[1768369371063,0.75835698,942.91,941.53,0.18463204]
[1768369371262,0.75835698,942.9,941.53,0.18463204]
[1768369371462,0.75835698,942.89,941.53,0.18463204]
[1768369371761,0.75835698,942.88,941.53,0.18463204]
[1768369372057,0.75835698,942.87,941.53,0.18463204]
[1768369372263,0.75835698,942.86,941.53,0.18463204]
[1768369372460,0.75835698,942.85,941.53,0.18463204]
[1768369372662,0.75835698,942.84,941.53,0.18463204]
[1768369372863,0.75835698,942.83,941.53,0.18463204]
[1768369373059,0.75835698,942.82,941.53,0.18463204]
[1768369373262,0.75835698,942.81,941.53,0.18463204]
[1768369373462,0.75835698,942.8,941.53,0.18463204]
[1768369373661,0.75835698,942.79,941.53,0.18463204]
[1768369373960,0.75835698,942.78,941.53,0.18463204]
[1768369374160,0.75835698,942.77,941.53,0.18463204]
[1768369374365,0.75835698,942.76,941.53,0.18463204]
[1768369374567,0.75835698,942.75,941.53,0.18463204]
[1768369374767,0.75835698,942.74,941.53,0.18463204]
[1768369374966,0.75835698,942.73,941.53,0.18463204]
[1768369375168,0.75835698,942.72,941.53,0.18463204]
[1768369375365,0.75835698,942.71,941.53,0.18463204]
[1768369375667,0.75835698,942.7,941.53,0.18463204]
[1768369375969,0.75835698,942.69,941.53,0.18463204]
[1768369376166,0.75835698,942.68,941.53,0.18463204]
[1768369376365,0.75835698,942.67,941.53,0.18463204]
[1768369376567,0.75835698,942.66,941.53,0.18463204]
[1768369376867,0.75835698,942.65,941.53,0.18463204]
[1768369377066,0.75835698,942.64,941.53,0.18463204]
[1768369377267,0.75835698,942.63,941.53,0.18463204]
[1768369377471,0.75835698,942.62,941.53,0.18463204]
[1768369377668,0.75835698,942.61,941.53,0.18463204]
[1768369377870,0.75835698,942.6,941.53,0.18463204]
[1768369378069,0.75835698,942.59,941.53,0.18463204]
[1768369378271,0.75835698,942.58,941.53,0.18463204]
[1768369378472,0.75835698,942.57,941.53,0.18463204]
[1768369378670,0.75835698,942.56,941.53,0.18463204]
[1768369378869,0.75835698,942.55,941.53,0.18463204]
[1768369379072,0.75835698,942.54,941.53,0.18463204]
[1768369379270,0.75835698,942.53,941.53,0.18463204]
[1768369379468,0.75835698,942.52,941.53,0.18463204]
[1768369379671,0.75835698,942.51,941.53,0.18463204]
[1768369379871,0.75835698,942.5,941.53,0.18463204]
[1768369380173,0.75835698,942.49,941.53,0.18463204]
[1768369380373,0.75835698,942.48,941.53,0.18463204]
[1768369380573,0.75835698,942.47,941.53,0.18463204]
[1768369380774,0.75835698,942.46,941.53,0.18463204]
[1768369380975,0.75835698,942.45,941.53,0.18463204]
[1768369381175,0.75835698,942.44,941.53,0.18463204]
[1768369381374,0.75835698,942.43,941.53,0.18463204]
[1768369381572,0.75835698,942.42,941.53,0.18463204]
[1768369381774,0.75835698,942.41,941.53,0.18463204]
[1768369381972,0.75835698,942.4,941.53,0.18463204]
[1768369382173,0.75835698,942.39,941.53,0.18463204]
[1768369382372,0.75835698,942.38,941.53,0.18463204]
[1768369382573,0.75835698,942.37,941.53,0.18463204]
[1768369382772,0.75835698,942.36,941.53,0.18463204]
[1768369382973,0.75835698,942.35,941.53,0.18463204]
[1768369383174,0.75835698,942.34,941.53,0.18463204]
[1768369383374,0.18466241,943.2,941.53,0.18463204]
[1768369383375,0.75835698,942.33,941.53,0.18463204]
[1768369383576,0.75835698,942.32,941.53,0.18463204]
[1768369383778,0.75835698,942.31,941.53,0.18463204]
[1768369383978,0.75835698,942.3,941.53,0.18463204]
[1768369384180,0.75835698,942.29,941.53,0.18463204]
[1768369384379,0.75835698,942.28,941.53,0.18463204]
[1768369384580,0.75835698,942.27,941.53,0.18463204]
[1768369384776,0.75835698,942.26,941.53,0.18463204]
[1768369384976,0.75835698,942.25,941.53,0.18463204]
[1768369385178,0.75835698,942.24,941.53,0.18463204]
[1768369385377,0.75835698,942.23,941.53,0.18463204]
[1768369385580,0.75835698,942.22,941.53,0.18463204]
[1768369385776,0.75835698,942.21,941.53,0.18463204]
[1768369386078,0.75835698,942.2,941.53,0.18463204]
[1768369386279,0.75835698,942.19,941.53,0.18463204]
[1768369386580,0.75835698,942.18,941.53,0.18463204]
[1768369386777,0.75835698,942.17,941.53,0.18463204]
[1768369386978,0.75835698,942.16,941.53,0.18463204]
[1768369387176,0.75835698,942.15,941.53,0.18463204]
[1768369387378,0.75835698,942.14,941.53,0.18463204]
[1768369387580,0.75835698,942.13,941.53,0.18463204]
[1768369387779,0.75835698,942.12,941.53,0.18463204]
[1768369387980,0.75835698,942.11,941.53,0.18463204]
[1768369388180,0.75835698,942.1,941.53,0.18463204]
[1768369388379,0.75835698,942.09,941.53,0.18463204]
[1768369388584,0.75835698,942.08,940.69,2.6431038]
[1768369388785,0.75835698,942.07,941.37,0.18472857]
[1768369388981,0.00809251,943.04,941.37,0.18472857]
[1768369388982,0.75835698,942.06,941.37,0.18472857]
[1768369389284,0.75835698,942.05,940.69,2.6431038]
[1768369389577,0.75835698,942.04,940.69,2.6431038]
[1768369389781,0.75835698,942.03,940.69,2.6431038]